Cogmind - Beta 13 *** ADVENTURER MODE // 2024.05.02 @ 00:03:31 Player: Ghosty Result: Destroyed by G-50 Soldier with Heavy Laser Performance ------------- Evolutions (5) 2500 Regions Visited (8) 1600 Robots Destroyed (60) 300 Value Destroyed (2118) 2118 Prototype IDs (2) 40 Alien Tech Used (0) 0 Bonus (55) 55 TOTAL SCORE: 6613 Bonus ------- High Alert Combat Kills 61 Friendly Fire -6 Cogmind --------- Core Integrity 0/1000 Matter 174/300 Energy 290/290 System Corruption 2% Temperature Cool (9) Movement Core (2850) Ox56 Location -5/Factory Parts ------- > --- POWER (2) -------- Improved Deuterium Engine > --- PROPULSION (4) --- (None) > --- UTILITY (7) ------ High-capacity Storage Unit High-capacity Storage Unit High-capacity Storage Unit High-capacity Storage Unit > --- WEAPON (4) ------- (None) > --- INVENTORY (20) --- Light Deuterium Engine Peak State ------------ > --- POWER ------------ Light Neutrino Core Micro Fission Core > --- PROPULSION ------- (None) > --- UTILITY ---------- Kinecellerator Microactuators Force Booster Force Booster Improved Transmission Jammer Advanced ECM Suite Shock Absorption System > --- WEAPON ----------- Heavy Plasma Cannon Flak Gun Gauss Cannon Great Maul > --- INVENTORY -------- Katana [Rating: 59] Favorites ----------- Power Neutrino Core Engine Light Ion Engine Power Core Neutrino Core Propulsion Light Treads Treads Light Treads Wheel Wheel Flight Unit VTOL Module Utility Targeting Computer Device Improved Terrain Scanner Storage High-capacity Matter Pod Processor Targeting Computer Protection Scrap Shield Weapon Autogun Energy Cannon Heavy Plasma Cannon Ballistic Gun Autogun Ballistic Cannon Bore Cannon Launcher Rocket Launcher Special Weapon Molecular Deconstructor Impact Weapon Great Maul Slashing Weapon Katana Build | -11 -10 -10 -8 -7 -6 -6 -6 -5 ------- Run | Yrd Mat Sub Mat Fac Fac Low Low Fac Slots Evolved 10 | . . . 4 2 2 . . 2 Power 1 | . . . 1 . . . . . Propulsion 2 | . . . . . . . . 2 Utility 5 | . . . 3 1 1 . . . Weapon 2 | . . . . 1 1 . . . Parts Attached 91 | 6 1 12 15 8 4 4 14 27 Power 13 | 1 . 2 2 1 . . 4 3 Engine 6 | 1 . 2 . . . . 2 1 Core 7 | . . . 2 1 . . 2 2 Reactor . | . . . . . . . . . Propulsion 14 | 2 . 3 4 . . . 1 4 Treads 10 | 2 . 3 4 . . . 1 . Leg . | . . . . . . . . . Wheel 3 | . . . . . . . . 3 Hover . | . . . . . . . . . Flight 1 | . . . . . . . . 1 Utility 37 | 1 1 4 6 4 1 3 3 14 Device 18 | . 1 2 1 2 . 1 2 9 Storage 11 | 1 . . 3 2 . . 1 4 Processor 7 | . . 1 2 . 1 2 . 1 Hackware . | . . . . . . . . . Protection 1 | . . 1 . . . . . . Artifact . | . . . . . . . . . Weapon 27 | 2 . 3 3 3 3 1 6 6 Energy Gun . | . . . . . . . . . Energy Cannon 1 | . . . . . . . . 1 Ballistic Gun 11 | 2 . 3 1 1 2 . . 2 Ballistic Cannon 3 | . . . 1 1 . . . 1 Launcher 2 | . . . 1 . 1 . . . Special Weapon 2 | . . . . . . . 2 . Impact Weapon 4 | . . . . . . 1 2 1 Slashing Weapon 4 | . . . . 1 . . 2 1 Piercing Weapon . | . . . . . . . . . Special Melee Weapon . | . . . . . . . . . Unidentified Prototypes 2 | . . . . . . . 1 1 Corrupted Parts 2 | . . . . . . . 2 . System Corruption 12 | . . . . . . . 12 . Parts Lost 34 | . . 2 . . . 9 8 15 Power 5 | . . . . . . 2 3 . Propulsion 6 | . . 1 . . . 2 1 2 Utility 14 | . . 1 . . . 3 3 7 Weapon 9 | . . . . . . 2 1 6 Highest Loss Streak 10 | . . 1 . . . 8 5 10 To Critical Strikes . | . . . . . . . . . Average Slot Usage (%) 77 | . 98 89 93 99 98 64 34 45 Engine 4 | . 14 14 4 . . . . . Core 5 | . . . 11 15 13 3 . 3 Treads 13 | . 28 25 17 15 13 3 . . Device 11 | . 12 7 5 12 13 6 2 29 Storage 6 | . 14 1 12 9 6 6 . 1 Processor 15 | . . 7 23 23 26 29 20 . Ballistic Gun 12 | . 28 28 7 15 13 6 . 1 Ballistic Cannon 2 | . . . 8 3 . . . 1 Slashing Weapon 1 | . . . . 3 6 5 . . Naked Turns 20 | . . . . . . . 14 6 Heaviest Build 172 | 11 13 24 37 51 56 56 25 172 Greatest Support 40 | 40 40 40 40 40 40 40 28 20 Greatest Overweight (x) 57 | . . . 1 1 1 8 8 57 Average Overweight (x) 1 | . . . . . 1 5 1 7 Largest Inventory Capacity 20 | 8 8 8 5 15 15 15 5 20 Average Capacity 7 | 7 8 5 5 8 15 15 5 6 Most Carried 8 | 2 8 8 5 8 7 6 5 5 Average Carried 4 | . 4 4 4 6 6 4 4 3 Final Capacity 20 | 8 8 5 5 15 15 15 5 20 Final Carried 8 | 2 8 4 5 8 6 5 5 1 Class Distribution -------------------- 40% | Mutant 30% | Scavenger-Mutant 11% | Infiltrator-Mutant 7% | Scavenger-Skirmisher 5% | Assassin 3% | Scavenger-Assassin Dominant Class ---------------- Mutant | -10/Materials Mutant | -10/Subcaves Scavenger-Mutant | -8/Materials Scavenger-Mutant | -7/Factory Scavenger-Assassin | -6/Factory Mutant | -6/Lower Caves Mutant | -6/Lower Caves Infiltrator-Mutant | -5/Factory Resources | -11 -10 -10 -8 -7 -6 -6 -6 -5 ----------- Run | Yrd Mat Sub Mat Fac Fac Low Low Fac Matter Collected 2586 | 168 . 375 463 780 . 381 186 233 Remotely 640 | . . . . 501 . 139 . . Salvage Created 2060 | . 76 289 326 793 . 240 93 243 Parts 112 | . 2 16 30 41 . 7 3 13 Haulers Intercepted . | . . . . . . . . . Recyclers Shooed 1 | . . . . 1 . . . . Parts Field Recycled . | . . . . . . . . . Retrieved Matter . | . . . . . . . . . Parts Self-Destructed 27 | . . 12 . . . 8 7 . Prevented . | . . . . . . . . . Kills | -11 -10 -10 -8 -7 -6 -6 -6 -5 ------- Run | Yrd Mat Sub Mat Fac Fac Low Low Fac Combat Hostiles Destroyed 42 | . 2 7 9 8 . 7 2 7 Melee 2 | . . . . . . 1 . 1 Guns 25 | . 2 7 4 7 . 4 . 1 Cannons 7 | . . . 3 1 . . . 3 AOE 6 | . . . 2 . . 2 . 2 Classes Destroyed 14 | . 1 3 5 2 . 1 . 2 Worker 2 | . . . . . . . . 2 Builder 2 | . . . 1 1 . . . . Tunneler 1 | . . . 1 . . . . . Recycler 4 | . . . . 4 . . . . Mechanic 1 | . . . . . . . . 1 Operator 4 | . . . 3 1 . . . . Turret 2 | . . 2 . . . . . . Watcher 2 | . . . 1 1 . . . . Swarmer 10 | . . 1 4 . . 2 . 3 Grunt 12 | . 2 . 2 3 . 2 1 2 Duelist 2 | . . . . . . 1 1 . Sentry 6 | . . . 3 2 . 1 . . Programmer 6 | . . . . 3 . 1 . 2 Subdweller 6 | . . 6 . . . . . . Best Kill Streak 6 | . 2 2 3 3 . 6 2 5 Combat Bots Only 6 | . 2 2 2 3 . 6 2 3 Max Kills in Single Turn 4 | . 1 1 2 1 . 2 1 4 Gunslinging . | . . . . . . . . . Exploded 2 | . . . 2 . . 2 . 2 Melee 1 | . . . . . . 1 . 1 Uniques/NPCs Destroyed . | . . . . . . . . . Combat | -11 -10 -10 -8 -7 -6 -6 -6 -5 -------- Run | Yrd Mat Sub Mat Fac Fac Low Low Fac Hostile Shots Fired 721 | . 7 150 45 147 . 107 57 208 Missed 224 | . 3 58 15 56 . 27 11 54 Damage Taken 6248 | . 33 822 233 677 . 1205 770 2508 Core 1866 | . 16 102 25 114 . 350 246 1013 Absorbed by Shields 15 | . . . . . . . . 15 Ignored by Resistances 1783 | . 11 254 71 219 . 336 208 684 Regen/Repaired (Parts) 165 | . . . 81 84 . . . . Core Remaining (%) 71 | 100 . 52 95 83 . . 29 . Volleys Fired 184 | . 4 39 41 54 . 14 5 27 Largest 3 | . 2 2 2 3 . 2 1 3 Hottest 166 | . 40 60 90 103 . 61 . 166 Shots Fired 345 | . 8 78 73 125 . 18 5 38 Gun 243 | . 8 78 29 99 . 15 . 14 Cannon 91 | . . . 41 26 . . . 24 Launcher 6 | . . . 3 . . 3 . . Special 5 | . . . . . . . 5 . Kinetic 322 | . 8 78 70 125 . 15 . 26 Thermal 12 | . . . . . . . . 12 Explosive 6 | . . . 3 . . 3 . . Electromagnetic . | . . . . . . . . . Robot Hit Streak 32 | . 4 32 12 25 . 30 7 20 Robot Miss Streak 4 | . 1 2 3 3 . 3 . 4 Penetration Max 1 | . . . 1 . . . . . Secondary Targets 2 | . . 2 . . . . . . Max Gunslinging Chain 1 | . . 1 . . . . . . Shots Hit Robots 256 | . 6 62 39 90 . 22 5 32 Core Hits 140 | . 4 27 19 32 . 33 . 25 Critical Kills 8 | . . 1 5 2 . . . . Critical Parts Destroyed 14 | . . . 10 4 . . . . Critical Strikes 23 | . . 1 15 6 . . . 1 Destroy 22 | . . 1 15 6 . . . . Blast 1 | . . . . . . . . 1 Melee Attacks 15 | . . . . 1 1 6 4 3 Impact 7 | . . . . . . . 4 3 Slashing 8 | . . . . 1 1 6 . . Piercing . | . . . . . . . . . Sneak Attacks . | . . . . . . . . . Combat Hostiles . | . . . . . . . . . Follow-up Attacks . | . . . . . . . . . Damage Inflicted 5336 | . 63 725 931 1418 . 762 . 1437 Guns 2857 | . 63 725 270 1104 . 343 . 352 Cannons 1378 | . . . 505 314 . . . 559 Explosions 804 | . . . 156 . . 226 . 422 Melee 297 | . . . . . . 193 . 104 Ramming . | . . . . . . . . . Kinetic 3895 | . 63 725 775 1418 . 343 . 571 Thermal 762 | . . . . . . . . 762 Explosive 382 | . . . 156 . . 226 . . Electromagnetic . | . . . . . . . . . Impact 104 | . . . . . . . . 104 Slashing 193 | . . . . . . 193 . . Piercing . | . . . . . . . . . Highest Corruption 17 | . . . . 3 . 2 17 2 Average Corruption 2 | . . . . 1 . 1 5 1 Corruption Purged . | . . . . . . . . . Corruption Blocked . | . . . . . . . . . Effects 49 | . . . . 16 . 15 14 4 Message Errors 10 | . . . . 1 . 6 3 . Matter Fused 15 | . . . . 6 . 1 5 3 Heat Flow Errors 5 | . . . . 1 . 1 2 1 Energy Discharges 11 | . . . . 5 . 6 . . Data Loss (minor) 2 | . . . . 1 . . 1 . Data Loss (major) 1 | . . . . . . . 1 . Misfires 2 | . . . . 1 . 1 . . Alerts 1 | . . . . . . . 1 . Misdirections 1 | . . . . . . . 1 . Weapon Failures 1 | . . . . 1 . . . . Overload Shots . | . . . . . . . . . Overflow Damage 143 | . . . 12 36 . 10 . 85 Projectiles 83 | . . . 12 36 . . . 35 Explosions 50 | . . . . . . . . 50 Melee 10 | . . . . . . 10 . . Knockbacks 9 | . . . 2 2 . . . 5 Impact 1 | . . . . . . . . 1 Kinetic 8 | . . . 2 2 . . . 4 Secondary . | . . . . . . . . . Self-Inflicted Damage 60 | . . . . . . . . 60 Shots 1 | . . . . . . . . 1 Rammed . | . . . . . . . . . Targets Rammed . | . . . . . . . . . Kicked . | . . . . . . . . . Crushed . | . . . . . . . . . Highest Temperature 541 | . 6 10 304 506 . 202 169 541 Average Temperature 128 | . 6 8 101 142 . 43 80 195 Received Heat Transfer 2451 | . 24 432 81 225 . 420 252 1017 Effects 20 | . . . 3 8 . . . 9 Shutdowns 5 | . . . . 3 . . . 2 Energy Bleed 3 | . . . 1 2 . . . . Interference 4 | . . . 2 1 . . . 1 Short Circuit 2 | . . . . 2 . . . . Damage (major) 6 | . . . . . . . . 6 Siege Activations . | . . . . . . . . . Robots Corrupted . | . . . . . . . . . Combat Hostiles . | . . . . . . . . . Parts Fried . | . . . . . . . . . Impact Corruptions . | . . . . . . . . . Robots Melted . | . . . . . . . . . Combat Hostiles . | . . . . . . . . . Parts Melted 1 | . . . . . . . . 1 Heat Transferred 750 | . . . . . . . . 750 Parts Sabotaged . | . . . . . . . . . Parts Stolen . | . . . . . . . . . Parts Stripped . | . . . . . . . . . Power Chain Reactions . | . . . . . . . . . Alert | -11 -10 -10 -8 -7 -6 -6 -6 -5 ------- Run | Yrd Mat Sub Mat Fac Fac Low Low Fac Peak Influence 594 | . 50 . 594 267 1 . . 130 Initial 370 | . . . 370 192 . . . . Average 172 | . 22 . 465 130 . . . 23 Maximum Alert Level 2 | . . . 2 1 . . . . Low Security (%) 70 | 100 100 . . 91 100 . . 100 Level 1 11 | . . . 33 8 . . . . Level 2 17 | . . . 66 . . . . . Level 3 . | . . . . . . . . . Level 4 . | . . . . . . . . . Level 5 . | . . . . . . . . . High Security . | . . . . . . . . . Max Security . | . . . . . . . . . Squads Dispatched 9 | . 1 . 1 6 . . . 1 Investigation 2 | . 1 . . 1 . . . . Extermination 4 | . . . . 3 . . . 1 Reinforcement 3 | . . . 1 2 . . . . Assault . | . . . . . . . . . Garrison . | . . . . . . . . . Intercept . | . . . . . . . . . Searches Triggered . | . . . . . . . . . Construction Impeded . | . . . . . . . . . Haulers Reinforced . | . . . . . . . . . Active Scanning Responses . | . . . . . . . . . Cargo Convoy Interrupts . | . . . . . . . . . Stealth | -11 -10 -10 -8 -7 -6 -6 -6 -5 --------- Run | Yrd Mat Sub Mat Fac Fac Low Low Fac Distress Signals . | . . . . . . . . . Communications Jammed . | . . . . . . . . . Distress Signals . | . . . . . . . . . Times Spotted 137 | . 2 79 17 10 . 12 6 11 Peak Tracking Total 8 | . 2 8 3 3 . 7 4 4 Tactical Retreats 8 | . . 4 3 . . . 1 . Traps | -11 -10 -10 -8 -7 -6 -6 -6 -5 ------- Run | Yrd Mat Sub Mat Fac Fac Low Low Fac Traps Triggered 2 | . . . . 1 . . . 1 Indirectly . | . . . . . . . . . Trap Hack Attempts . | . . . . . . . . . Triggered . | . . . . . . . . . Disarmed . | . . . . . . . . . Reprogrammed . | . . . . . . . . . Reused . | . . . . . . . . . Traps Extracted . | . . . . . . . . . Installed . | . . . . . . . . . Triggered 2 | . . . . . . . 2 . Machines | -11 -10 -10 -8 -7 -6 -6 -6 -5 ---------- Run | Yrd Mat Sub Mat Fac Fac Low Low Fac Machines Disabled 11 | . . . 7 1 . . 1 2 Max in Single Turn 2 | . . . 2 1 . . 1 1 Machines Repaired . | . . . . . . . . . Machines Dismantled . | . . . . . . . . . Machines Sabotaged . | . . . . . . . . . Overloaded Fab Kills . | . . . . . . . . . Hacking | -11 -10 -10 -8 -7 -6 -6 -6 -5 --------- Run | Yrd Mat Sub Mat Fac Fac Low Low Fac Machines Accessed 10 | . 2 . 5 3 . . . . Terminals 5 | . 2 . 3 . . . . . Fabricators . | . . . . . . . . . Repair Stations 3 | . . . 1 2 . . . . Recycling Units 1 | . . . . 1 . . . . Scanalyzers 1 | . . . 1 . . . . . Garrison Access . | . . . . . . . . . Total Hacks 23 | . 4 . 11 8 . . . . Successful 9 | . . . 6 3 . . . . Failed 14 | . 4 . 5 5 . . . . Catastrophic 2 | . 1 . . 1 . . . . Database Lockouts . | . . . . . . . . . Manual 13 | . 5 . 7 . . . 1 . Terminals 11 | . 4 . 7 . . . . . Fabricators . | . . . . . . . . . Repair Stations 6 | . . . 2 4 . . . . Recycling Units 4 | . . . . 4 . . . . Scanalyzers 2 | . . . 2 . . . . . Garrison Access . | . . . . . . . . . Terminal Hacks 2 | . . . 2 . . . . . Level Access Points 1 | . . . 1 . . . . . Branch Access Points 1 | . . . 1 . . . . . Fabricator Hacks . | . . . . . . . . . Repair Station Hacks 4 | . . . 2 2 . . . . Scan Component 2 | . . . 1 1 . . . . Repair 2 | . . . 1 1 . . . . Recycling Unit Hacks 1 | . . . . 1 . . . . Process 1 | . . . . 1 . . . . Scanalyzer 2 | . . . 2 . . . . . Insert Component 1 | . . . 1 . . . . . Analyze 1 | . . . 1 . . . . . Garrison Access Hacks . | . . . . . . . . . Unauthorized Hacks . | . . . . . . . . . Terminals . | . . . . . . . . . Fabricators . | . . . . . . . . . Repair Stations . | . . . . . . . . . Recycling Units . | . . . . . . . . . Scanalyzers . | . . . . . . . . . Garrison Access . | . . . . . . . . . Data Cores Recovered 2 | . . . 2 . . . . . Used . | . . . . . . . . . Hacking Detections 7 | . 2 . 3 2 . . . . Full Trace Events 3 | . 2 . . 1 . . . . Feedback Events . | . . . . . . . . . Feedback Blocked . | . . . . . . . . . Robot Schematics Acquired . | . . . . . . . . . Robots Built . | . . . . . . . . . Authchips . | . . . . . . . . . Time . | . . . . . . . . . Total Robot Build Rating . | . . . . . . . . . Part Schematics Acquired 1 | . . . 1 . . . . . Parts Built . | . . . . . . . . . Authchips . | . . . . . . . . . Time . | . . . . . . . . . Total Part Build Rating . | . . . . . . . . . Parts Repaired 2 | . . . 1 1 . . . . Time 88 | . . . 38 50 . . . . Parts Recycled . | . . . . . . . . . Recycled Matter 29 | . . . . 29 . . . . Retrieved Matter . | . . . . . . . . . Retrieved Components . | . . . . . . . . . Parts Scanalyzed 1 | . . . 1 . . . . . Part Schematics Acquired 1 | . . . 1 . . . . . Parts Damaged . | . . . . . . . . . Bothacking | -11 -10 -10 -8 -7 -6 -6 -6 -5 ------------ Run | Yrd Mat Sub Mat Fac Fac Low Low Fac Used RIF Installer . | . . . . . . . . . Robots Hacked . | . . . . . . . . . Non-combat . | . . . . . . . . . Combat . | . . . . . . . . . Robot Hacks Applied . | . . . . . . . . . Relay Couplers Released . | . . . . . . . . . Fabnet Peak Effective % . | . . . . . . . . . Robots Rewired . | . . . . . . . . . Allies Hacked . | . . . . . . . . . Hacks Repelled . | . . . . . . . . . Allies | -11 -10 -10 -8 -7 -6 -6 -6 -5 -------- Run | Yrd Mat Sub Mat Fac Fac Low Low Fac Total Allies . | . . . . . . . . . Largest Group . | . . . . . . . . . Highest-Rated Group . | . . . . . . . . . Highest-Rated Ally . | . . . . . . . . . Total Orders . | . . . . . . . . . Ally Attacks . | . . . . . . . . . Total Damage . | . . . . . . . . . Kills . | . . . . . . . . . Allies Corrupted . | . . . . . . . . . Allies Melted . | . . . . . . . . . Intel | -11 -10 -10 -8 -7 -6 -6 -6 -5 ------- Run | Yrd Mat Sub Mat Fac Fac Low Low Fac Robot Analysis Total . | . . . . . . . . . Derelict Logs Recovered 2 | . . 1 . . . . 1 . Drone Launches 2 | . . . . . . . 2 . Drone Recoveries 1 | . . . . . . . 1 . Exploration | -11 -10 -10 -8 -7 -6 -6 -6 -5 ------------- Run | Yrd Mat Sub Mat Fac Fac Low Low Fac Turns Passed 7292 | 113 644 1264 1160 1255 35 990 720 1111 Spaces Moved 2978 | 69 257 695 597 534 12 256 329 229 Core 658 | 7 . . . . . 167 308 176 Treads 2267 | 62 257 695 597 534 12 89 21 . Legs . | . . . . . . . . . Wheels 52 | . . . . . . . . 52 Hover . | . . . . . . . . . Flight 1 | . . . . . . . . 1 Fastest Speed 50 | 50 160 160 160 170 250 170 50 50 Average Speed 202 | 148 160 160 164 193 250 367 128 437 Slowest Speed 2900 | 160 160 160 250 250 250 450 450 2900 Overloaded Moves . | . . . . . . . . . Propulsion Burnouts . | . . . . . . . . . Robots Hopped . | . . . . . . . . . Cave-ins Triggered . | . . . . . . . . . Exploration Rate (%) 19 | 4 20 35 32 16 1 45 21 4 Regions Visited 8 Branch Regions 3 Pre-discovered Areas 1 | . . 1 . . . . . . Known Exits Taken 4 | . . . 1 1 1 1 . . Unknown Exits Taken 4 | 1 1 1 . . . . 1 . Scrap Searched 3 | . . 1 . . . 1 1 . Spaces Dug 6 | . . . . 2 1 . 3 . Terrain Destroyed 110 | . . . 59 7 1 29 3 11 Melee 4 | . . . . . 1 . 3 . Projectile 21 | . . . 10 7 . . . 4 AOE 85 | . . . 49 . . 29 . 7 Terrain Rammed . | . . . . . . . . . Walls Destroyed . | . . . . . . . . . Machines Disabled . | . . . . . . . . . Actions | -11 -10 -10 -8 -7 -6 -6 -6 -5 --------- Run | Yrd Mat Sub Mat Fac Fac Low Low Fac Total 3916 | 76 484 781 708 668 18 284 605 292 Wait 574 | . 211 19 38 59 . . 245 2 Move 2970 | 68 256 694 596 533 11 255 328 229 Hop . | . . . . . . . . . Pick Up 34 | 2 9 4 5 8 . 1 2 3 Fast Attach 55 | 6 1 5 9 1 . 1 11 21 Attach 24 | . . 2 3 3 4 3 3 6 Detach 11 | . . 1 2 . 2 3 3 . Swap 12 | . . 5 3 4 . . . . Drop 37 | . 3 12 11 5 . 1 4 1 Fire 184 | . 4 39 41 54 . 14 5 27 Melee 15 | . . . . 1 1 6 4 3 Ram . | . . . . . . . . . Kick . | . . . . . . . . . Crush . | . . . . . . . . . Escape Stasis . | . . . . . . . . . Rewire . | . . . . . . . . . Trap . | . . . . . . . . . Miscellaneous . | . . . . . . . . . Route ------- -11/Scrapyard -10/Materials (discovered 2 exits: [*Mat] / [*Sub]) -10/Subcaves (discovered 2 exits: *Mat / [*Rec]) -8/Materials (discovered 3 exits: *Fac x3) -7/Factory (discovered 2 exits: *Fac x2) -6/Factory -6/Lower Caves -6/Lower Caves -5/Factory (discovered 1 exit: Ext) History --------- Turn | Location | Event 24 | -11/Scrapyard | Discovered new exit (range 15) 114 | -11/Scrapyard | Entered Materials 312 | -10/Materials | Build established: Mutant 604 | -10/Materials | Discovered new exit (range 10) 739 | -10/Materials | Discovered new exit (range 8) 758 | -10/Materials | Entered Subcaves 760 | -10/Subcaves | Learned location of Zion (-6) 866 | -10/Subcaves | Ambushed by swarm of Subdwellers 869 | -10/Subcaves | Ambushed by Subdwellers from Twisted Machinery 869 | -10/Subcaves | Ambushed by Subdwellers from Twisted Machinery 869 | -10/Subcaves | Ambushed by Subdwellers from Twisted Machinery 1284 | -10/Subcaves | Discovered new exit (range 12) 1323 | -10/Subcaves | Lost 3 allies 1778 | -10/Subcaves | Discovered new exit (range 4) 1995 | -10/Subcaves | Build established: Scavenger-Mutant 2022 | -10/Subcaves | Entered Materials 2022 | -8/Materials | Evolved 4 slots: Power x1, Utility x3 2786 | -8/Materials | Identified exit to Factory 3145 | -8/Materials | Repaired Arm. Treads 3182 | -8/Materials | Entered Factory 3182 | -7/Factory | Evolved 2 slots: Utility x1, Weapon x1 3288 | -7/Factory | Repaired Bore Cannon 3541 | -7/Factory | Discovered new exit (range 19) 3594 | -7/Factory | Build established: Scavenger-Skirmisher 4101 | -7/Factory | Build established: Scavenger-Mutant 4409 | -7/Factory | Discovered new exit (range 5) 4419 | -7/Factory | Identified exit to Factory 4437 | -7/Factory | Entered another Factory area 4437 | -6/Factory | Evolved 2 slots: Utility x1, Weapon x1 4440 | -6/Factory | Discovered new exit (range 10) 4470 | -6/Factory | Identified exit to Lower Caves 4472 | -6/Factory | Entered Lower Caves 4688 | -6/Lower Caves | Attracted the attention of an 0b10 outpost 4762 | -6/Lower Caves | Lost 8 parts (2p2n2u2w) 5266 | -6/Lower Caves | Build established: Assassin 5396 | -6/Lower Caves | Discovered new exit (range 8) 5457 | -6/Lower Caves | Identified exit to Lower Caves 5462 | -6/Lower Caves | Entered another Lower Caves area 5480 | -6/Lower Caves | Learned location of 1 exit from Factory 5524 | -6/Lower Caves | Acquired the password to a Derelict Tinkerer's latest research 5532 | -6/Lower Caves | Found Prototype Special Weapon 5532 | -6/Lower Caves | Identified Molecular Deconstructor 5762 | -6/Lower Caves | Build established: Mutant 5976 | -6/Lower Caves | System corruption reached 10% 6031 | -6/Lower Caves | Core integrity fell below 50% 6037 | -6/Lower Caves | Released all parts (6) 6063 | -6/Lower Caves | Lost 3 parts (1p1n1u) 6138 | -6/Lower Caves | Caught by Unaware searching for contraband prototypes 6165 | -6/Lower Caves | Discovered new exit (range 7) 6182 | -6/Lower Caves | Entered Factory 6182 | -5/Factory | Evolved 2 slots: Propulsion x2 6183 | -5/Factory | Identified exit to Extension 6212 | -5/Factory | Lost 5 parts (2p2u1w) 6469 | -5/Factory | Build established: Infiltrator-Mutant 7175 | -5/Factory | Released all parts (6) 7201 | -5/Factory | Lost 10 parts (2n4u4w) 7217 | -5/Factory | Core integrity fell below 50% 7251 | -5/Factory | Core integrity fell below 20% 7293 | -5/Factory | Destroyed by G-50 Soldier with Heavy Laser Last Messages --------------- 07175_ Released Machine Analyzer. 07175_ Released Imp. Transmission Jammer. 07175_ Released Force Booster. 07175_ Released Mic. Fission Core. 07175_ Released Lgt. Neutrino Core. 07175_ K-01 Serf collects debris. 07175_ U-05 Engineer lays Concrete. 07178_ ALERT: Cargo convoy en route, clear transfer corridor. 07178_ U-05 Engineer lays Concrete. 07181_ Acquired Hcp. Storage Unit. 07187_ System corrupted: Matter fused (-8). 07189_ Acquired Hcp. Storage Unit. 07205_ U-05 Engineer lays Concrete. 07213_ Critical hit (Burn: +37). 07218_ Acquired Hcp. Storage Unit. 07223_ L-41 Fighter destroyed. 07239_ Acquired Hcp. Storage Unit. 07249_ Critical hit (Burn: +37). 07269_ Acquired Imp. Deuterium Engine. 07273_ Katana destroyed. Map ----- +----------------------------------------------------+ | ?????????????????????????????????????????????????? | | ?????????????????????????????????????????????????? | | ?????????????????????????????????????????????????? | | ?????????????????????????????????????????????????? | | ?????????????????????????????????????????????????? | | ?????????????????????????????????????????????????? | | ?????????????????????????????????????????????????? | | ?????????????????????????????????????????????????? | | ?????????????????????????????????????????????????? | | ?????????????????????????????????????????????????? | | ?????????????????????????????????????????????????? | | ?????#######?????????????????????????????????????? | | ?????# #?????????????????????????????????????? | | ?????# #?????????????????????????????????????? | | ?????# #??????????########???????????????????? | | ?????# #??????????# ???????????????????? | | ?????# #??????????# ??????????????????? | | ?????# #??????????# """"""????????????????? | | ?????# ############ """"""????????????????? | | ?????# # """"""" ## """"""????????????????? | | ?????# # """"""" ## """""" #?????????????? | | ?????# # """"""" ## #?????????????? | | ?????# + """"""" ## g"""""" #?????????????? | | ###### # ##!!! """""" #?????????????? | | """ # # ##!% """""" #?????????????? | | "T" # # ##!=@ """""" #?????????????? | | # # ## g #?????????????? | | [# ##################+##########?????????? | | # #?????????? | | + ^ #?????????? | | # ! #?????????? | | ! # !=* ##????????? | | # *[] ! #????????? | | #########+######+####### %!* #????????? | | !! ## # ! % ### |* % ##????????? | | ! !## """ """ # [### ##????????? | | ####### """ """ # " " #?# ##????????? | | ??????# """ """ # """"" #?# ##????????? | | ??????# # """"""" #?# % #?????????? | | ??????# # """""""=#?# ## % ??????? | | ??????# # % #?# ####+#+#######?????? | | ??????# # % #?# #????? ??????????? | | ??????#####################?# ??????? ?????????? | | ????????????????????????????# ???????? ????????? | | ???????????????????????????? ????????? ????????? | | ???????????????????????????? ???????????????????? | | ???????????????????????????? ???????????????????? | | ???????????????????????????? ???????????????????? | | ????????????????????????????##???????????????????? | | ?????????????????????????????????????????????????? | +----------------------------------------------------+ Best States ------------- Heat Dissipation 40 Energy Generation 29 Energy Capacity 515 Matter Stores 301 Matter Capacity 500 Sight Range 21 Terrain Scan Range 16 Terrain Scan Density 185 ECM Strength 2 Jamming Range 14 Armor Coverage 800 Resistance: KI 20 Resistance: TH 20 Resistance: EX 45 Resistance: EM 20 Resistance: I 20 Resistance: S 20 Resistance: P 20 Melee Speed Boost 20 Evasion (%) 50 Targeting Accuracy 10 Recoil Reduction 2 Kinecelleration 30 Force Boost 20 Offensive Hacking 10 Item Schematics ----------------- Rocket Launcher | -8/Materials | Scanalyzed Robot Schematics ------------------ None Fabricated ------------ Nothing Alien Tech Used ----------------- None Achievements -------------- Deconstruction Omniscient Cartographer Challenges ------------ None Game ------ Seed PowerRemoteArchive Manual? 0 Play Time 00:58:38 Cumulative 12.9 hours Start 2024.05.01 @ 15:52:13 End 2024.05.02 @ 00:03:31 Sessions 3 Manual Loads 0 Difficulty Adventurer Special Mode None Game No. 17 Rogue 9 Adventurer 7 Explorer 1 Win Type - Total 0 Types 0/0/0/0/0/0/0/0/0 Lore% 17 Gallery% 20 Achievement% 19 Wizard Run 0 Options --------- Layout 0 ASCII 1 Keyboard 1 Movement Arrows Keybinds 0 Fullscreen 2 Font 24/Smallcaps Map View 76x50 Zoom Use 0% Tactical HUD 1 Map Filters NONE Filters NONE Steam 1 RUN: 54a4d587-3dcf-4ec9-957e-dc136c3a851b